fUST/lending_fUST_20250408
["ID","MTS","AMOUNT","RATE_DAILY","PERIOD"]
[357453963,1744072272741,-636.74,0.00026575,2]
[357453964,1744072272751,-1462.38,0.00026575,2]
[357453965,1744072272762,-992.38,0.00026575,2]
[357453966,1744072272772,-1286.42,0.00026575,2]
[357453967,1744072272799,-715.83,0.00026575,2]
[357453968,1744072272818,-1578.91,0.00026575,2]
[357453969,1744072272842,-901.29,0.00026575,2]
[357453970,1744072272867,-500.0,0.00026575,2]
[357453971,1744072272891,-500.0,0.00026575,2]
[357453972,1744072272912,-1302.21,0.00026575,2]
[357453973,1744072272934,-822.32,0.00026575,2]
[357453974,1744072272951,-586.6,0.00026575,2]
[357453975,1744072272972,-500.0,0.00026575,2]
[357453976,1744072272998,-2863.04,0.00026575,2]
[357453977,1744072273019,-500.0,0.00026575,2]
[357453978,1744072273034,-1809.72,0.00026575,2]
[357453979,1744072273059,-1698.96,0.00026575,2]
[357453980,1744072273076,-500.0,0.00026575,2]
[357453981,1744072273099,-500.0,0.00026575,2]
[357453982,1744072273117,-1648.87,0.00026575,2]
[357453983,1744072273137,-1498.83,0.00026575,2]
[357453984,1744072273155,-1155.35,0.00026575,2]
[357453985,1744072273174,-1146.31,0.00026575,2]
[357453986,1744072273192,-1027.64,0.00026575,2]
[357453987,1744072273210,-1023.13,0.00026575,2]
[357453988,1744072273228,-500.0,0.00026575,2]
[357453989,1744072273246,-500.0,0.00026575,2]
[357453990,1744072273263,-985.96,0.00026575,2]
[357453991,1744072273280,-528.61,0.00026575,2]
[357453992,1744072273299,-1239.2,0.00026575,2]
[357453993,1744072273316,-2365.3,0.00026575,2]
[357453994,1744072273334,-1215.4,0.00026575,2]
[357453995,1744072273351,-545.75,0.00026575,2]
[357453996,1744072273369,-500.0,0.00026575,2]
[357453997,1744072273387,-500.0,0.00026575,2]
[357453998,1744072273404,-500.0,0.00026575,2]
[357453999,1744072273420,-500.0,0.00026575,2]
[357454000,1744072273437,-1098.37,0.00026575,2]
[357454001,1744072273454,-753.93,0.00026575,2]
[357454002,1744072273472,-501.5,0.00026575,2]
[357454003,1744072273489,-8516.27,0.00026575,2]
[357454004,1744072273507,-500.0,0.00026575,2]
[357454005,1744072273523,-1013.38,0.00026575,2]
[357454006,1744072273541,-1848.98,0.00026575,2]
[357454007,1744072273559,-1239.8,0.00026575,2]
[357454008,1744072273578,-500.0,0.00026575,2]
[357454009,1744072273594,-958.54,0.00026575,2]
[357454010,1744072273613,-231.28369723,0.0002658,2]
[357454011,1744072273629,-1000.0,0.00026652,2]
[357454012,1744072273646,-1000.0,0.00026652,2]
[357454013,1744072273663,-1000.0,0.00026652,2]
[357454014,1744072273680,-1000.0,0.00026652,2]
[357454015,1744072273697,-1000.0,0.00026652,2]
[357454016,1744072273714,-1000.0,0.00026652,2]
[357454017,1744072273731,-1000.0,0.00026652,2]
[357454018,1744072273748,-1000.0,0.00026652,2]
[357454019,1744072273768,-1000.0,0.00026652,2]
[357454020,1744072273785,-151.0,0.00026849,7]
[357454021,1744072273802,-500.0,0.00026849,2]
[357454022,1744072273819,-501.64,0.00026849,2]
[357454023,1744072273835,-548.37,0.00026849,2]
[357454024,1744072273851,-536.65,0.00026849,2]
[357454025,1744072273868,-500.0,0.00026849,2]
[357454026,1744072273886,-1119.87,0.00026849,2]
[357454027,1744072273904,-1199.5,0.00026849,2]
[357454028,1744072273921,-618.07,0.00026849,2]
[357454029,1744072273931,-1036.15,0.00026849,2]
[357454030,1744072273941,-528.55,0.00026849,2]
[357454031,1744072273951,-443.92711712,0.00026849,2]
[357454032,1744072274131,-991.44,0.00026849,2]
[357454033,1744072274164,-627.37,0.00026849,2]
[357454034,1744072274174,-373.06070026,0.00026849,2]
[357454035,1744072274183,-500.0,0.00026849,2]
[357454036,1744072274193,-630.12,0.00026849,2]
[357454037,1744072274203,-1246.42,0.00026849,2]
[357454038,1744072274212,-764.69,0.00026849,2]
[357454039,1744072274222,-1246.58,0.00026849,2]
[357454040,1744072274231,-818.18,0.00026849,2]
[357454041,1744072274241,-484.38,0.00026849,2]
[357454042,1744072274250,-500.0,0.00026849,2]
[357454043,1744072274260,-500.0,0.00026849,2]
[357454044,1744072274270,-592.63,0.00026849,2]
[357454045,1744072274280,-500.0,0.00026849,2]
[357454046,1744072274291,-766.38,0.00026849,2]
[357454047,1744072274300,-1098.07,0.00026849,2]
[357454048,1744072274310,-500.0,0.00026849,2]
[357454049,1744072274319,-500.0,0.00026849,2]
[357454050,1744072274329,-1281.59,0.00026849,2]
[357454051,1744072274339,-657.29,0.00026849,2]
[357454052,1744072274348,-504.96,0.00026849,2]
[357454053,1744072274358,-2269.19,0.00026849,2]
[357454054,1744072274368,-521.93,0.00026849,2]
[357454055,1744072274379,-1136.21,0.00026849,2]
[357454056,1744072274388,-2122.13,0.00026849,2]
[357454057,1744072274397,-2281.97,0.00026849,2]
[357454058,1744072274407,-1249.61,0.00026849,2]
[357454059,1744072274416,-2553.3,0.00026849,2]
[357454060,1744072274426,-2655.44,0.00026849,2]
[357454061,1744072274435,-4924.76,0.00026849,2]
[357454062,1744072274445,-500.0,0.00026849,2]
[357454063,1744072274454,-539.16,0.00026849,2]
[357454064,1744072274463,-1462.38,0.00026849,2]
[357454065,1744072274473,-992.38,0.00026849,2]
[357454066,1744072274483,-1286.42,0.00026849,2]
[357454067,1744072274493,-715.83,0.00026849,2]
[357454068,1744072274502,-1578.91,0.00026849,2]
[357454069,1744072274512,-901.29,0.00026849,2]
[357454070,1744072274521,-500.0,0.00026849,2]
[357454071,1744072274531,-545.6,0.00026849,2]
[357454072,1744072274540,-1302.21,0.00026849,2]
[357454073,1744072274550,-822.32,0.00026849,2]
[357454074,1744072274559,-586.6,0.00026849,2]
[357454075,1744072274570,-500.0,0.00026849,2]
[357454076,1744072274581,-2863.04,0.00026849,2]
[357454077,1744072274591,-500.0,0.00026849,2]
[357454078,1744072274601,-1809.72,0.00026849,2]
[357454079,1744072274610,-1698.96,0.00026849,2]
[357454080,1744072274619,-587.18,0.00026849,2]
[357454081,1744072274630,-500.0,0.00026849,2]
[357454082,1744072274639,-1648.87,0.00026849,2]
[357454083,1744072274650,-1498.83,0.00026849,2]
[357454084,1744072274659,-1155.35,0.00026849,2]
[357454085,1744072274668,-151.0,0.00026849,7]
[357454086,1744072274678,-151.0,0.00026849,7]
[357454087,1744072274687,-1146.31,0.00026849,2]
[357454088,1744072274696,-1027.64,0.00026849,2]
[357454089,1744072274706,-151.0,0.00026849,7]
[357454090,1744072274715,-1023.13,0.00026849,2]
[357454091,1744072274725,-151.0,0.00026849,2]
[357454092,1744072274735,-500.0,0.00026849,2]
[357454093,1744072274744,-985.96,0.00026849,2]
[357454094,1744072274754,-528.61,0.00026849,2]
[357454095,1744072274764,-1239.2,0.00026849,2]
[357454096,1744072274773,-2365.3,0.00026849,2]
[357454097,1744072274783,-1215.4,0.00026849,2]
[357454098,1744072274793,-545.75,0.00026849,2]
[357454099,1744072274802,-581.98274341,0.00026849,2]
[357454100,1744072274812,-500.0,0.00026849,2]
[357454101,1744072274821,-626.78,0.00026849,2]
[357454102,1744072274831,-500.0,0.00026849,2]
[357454103,1744072274841,-1098.37,0.00026849,2]
[357454104,1744072274851,-753.93,0.00026849,2]
[357454105,1744072274860,-501.5,0.00026849,2]
[357454106,1744072274870,-8516.27,0.00026849,2]
[357454107,1744072274880,-500.0,0.00026849,2]
[357454108,1744072274890,-1013.38,0.00026849,2]
[357454109,1744072274899,-1848.98,0.00026849,2]
[357454110,1744072274909,-1239.8,0.00026849,2]
[357454111,1744072274918,-500.0,0.00026849,2]
[357454112,1744072274928,-958.54,0.00026849,2]
[357454113,1744072274938,-543.0,0.00026871,2]
[357454114,1744072274948,-2254.0,0.00026871,2]
[357454115,1744072274958,-783.73948285,0.00027,3]
[357454116,1744072274967,-500.0,0.00027123,2]
[357454117,1744072274977,-501.64,0.00027123,2]
[357454118,1744072274986,-548.37,0.00027123,2]
[357454119,1744072274995,-536.65,0.00027123,2]
[357454120,1744072275005,-327.02449259,0.00027123,2]
[357454121,1744072275015,-1119.87,0.00027123,2]
[357454122,1744072275024,-1199.5,0.00027123,2]
[357454123,1744072275034,-618.07,0.00027123,2]
[357454124,1744072275043,-1036.15,0.00027123,2]
[357454125,1744072275053,-528.55,0.00027123,2]
[357454126,1744072275063,-991.44,0.00027123,2]
[357454127,1744072275072,-627.37,0.00027123,2]
[357454128,1744072275082,-500.0,0.00027123,2]
[357454129,1744072275091,-630.12,0.00027123,2]
[357454130,1744072275100,-1246.42,0.00027123,2]
[357454131,1744072275110,-764.69,0.00027123,2]
[357454132,1744072275120,-1246.58,0.00027123,2]
[357454133,1744072275130,-818.18,0.00027123,2]
[357454134,1744072275140,-500.0,0.00027123,2]
[357454135,1744072275149,-500.0,0.00027123,2]
[357454136,1744072275158,-592.63,0.00027123,2]
[357454137,1744072275167,-500.0,0.00027123,2]
[357454138,1744072275177,-766.38,0.00027123,2]
[357454139,1744072275187,-1098.07,0.00027123,2]
[357454140,1744072275196,-500.0,0.00027123,2]
[357454141,1744072275205,-500.0,0.00027123,2]
[357454142,1744072275215,-1281.59,0.00027123,2]
[357454143,1744072275225,-657.29,0.00027123,2]
[357454144,1744072275234,-504.96,0.00027123,2]
[357454145,1744072275244,-2269.19,0.00027123,2]
[357454146,1744072275254,-521.93,0.00027123,2]
[357454147,1744072275263,-1136.21,0.00027123,2]
[357454148,1744072275273,-2122.13,0.00027123,2]
[357454149,1744072275283,-2281.97,0.00027123,2]
[357454150,1744072275293,-1249.61,0.00027123,2]
[357454151,1744072275303,-2553.3,0.00027123,2]
[357454152,1744072275313,-2655.44,0.00027123,2]
[357454153,1744072275323,-4924.76,0.00027123,2]
[357454154,1744072275332,-500.0,0.00027123,2]
[357454155,1744072275341,-539.16,0.00027123,2]
[357454156,1744072275351,-1462.38,0.00027123,2]
[357454157,1744072275361,-992.38,0.00027123,2]
[357454158,1744072275370,-1286.42,0.00027123,2]
[357454159,1744072275382,-715.83,0.00027123,2]
[357454160,1744072275391,-1578.91,0.00027123,2]
[357454161,1744072275401,-901.29,0.00027123,2]
[357454162,1744072275410,-500.0,0.00027123,2]
[357454163,1744072275420,-1302.21,0.00027123,2]
[357454164,1744072275430,-822.32,0.00027123,2]
[357454165,1744072275440,-586.6,0.00027123,2]
[357454166,1744072275450,-500.0,0.00027123,2]
[357454167,1744072275460,-2863.04,0.00027123,2]
[357454168,1744072275470,-320.1,0.00027123,2]
[357454169,1744072275479,-1809.72,0.00027123,2]
[357454170,1744072275489,-1698.96,0.00027123,2]
[357454171,1744072275498,-500.0,0.00027123,2]
[357454172,1744072275508,-1648.87,0.00027123,2]
[357454173,1744072275517,-1498.83,0.00027123,2]
[357454174,1744072275527,-1155.35,0.00027123,2]
[357454175,1744072275537,-1146.31,0.00027123,2]
[357454176,1744072275547,-1027.64,0.00027123,2]
[357454177,1744072275557,-1023.13,0.00027123,2]
[357454178,1744072275570,-500.0,0.00027123,2]
[357454179,1744072275579,-985.96,0.00027123,2]
[357454180,1744072275590,-528.61,0.00027123,2]
[357454181,1744072275600,-1239.2,0.00027123,2]
[357454182,1744072275610,-2365.3,0.00027123,2]
[357454183,1744072275621,-1215.4,0.00027123,2]
[357454184,1744072275632,-545.75,0.00027123,2]
[357454185,1744072275642,-500.0,0.00027123,2]
[357454186,1744072275654,-590.19,0.00027123,2]
[357454187,1744072275664,-1098.37,0.00027123,2]
[357454188,1744072275674,-753.93,0.00027123,2]
[357454189,1744072275683,-501.5,0.00027123,2]
[357454190,1744072275693,-8516.27,0.00027123,2]
[357454191,1744072275704,-500.0,0.00027123,2]
[357454192,1744072275714,-1013.38,0.00027123,2]
[357454193,1744072275724,-1848.98,0.00027123,2]
[357454194,1744072275734,-1239.8,0.00027123,2]
[357454195,1744072275743,-500.0,0.00027123,2]
[357454196,1744072275753,-958.54,0.00027123,2]
[357454197,1744072275763,-151.0,0.00027397,7]
[357454198,1744072275773,-444.60760105,0.00027397,2]
[357454199,1744072275783,-501.64,0.00027397,2]
[357454200,1744072275793,-548.37,0.00027397,2]
[357454201,1744072275802,-536.65,0.00027397,2]
[357454202,1744072275812,-290.742792,0.00027397,7]
[357454203,1744072275822,-290.742792,0.00027397,7]
[357454204,1744072275832,-1119.87,0.00027397,2]
[357454205,1744072275842,-442.522977,0.00027397,7]
[357454206,1744072275851,-442.522977,0.00027397,7]
[357454207,1744072275861,-1199.5,0.00027397,2]
[357454208,1744072275871,-618.07,0.00027397,2]
[357454209,1744072275882,-1036.15,0.00027397,2]
[357454210,1744072275892,-528.55,0.00027397,2]
[357454211,1744072275902,-991.44,0.00027397,2]
[357454212,1744072275912,-627.37,0.00027397,2]
[357454213,1744072275921,-500.0,0.00027397,2]
[357454214,1744072275931,-630.12,0.00027397,2]
[357454215,1744072275941,-150.03,0.00027397,14]
[357454216,1744072275950,-150.03,0.00027397,14]
[357454217,1744072275960,-150.03,0.00027397,14]
[357454218,1744072275970,-150.03,0.00027397,14]
[357454219,1744072275980,-1246.42,0.00027397,2]
[357454220,1744072275990,-764.69,0.00027397,2]
[357454221,1744072276000,-300.0,0.00027397,14]
[357454222,1744072276010,-150.03,0.00027397,14]
[357454223,1744072276020,-500.0,0.00027397,14]
[357454224,1744072276030,-150.03,0.00027397,14]
[357454225,1744072276040,-300.0,0.00027397,14]
[357454226,1744072276050,-150.03,0.00027397,14]
[357454227,1744072276059,-1246.58,0.00027397,2]
[357454228,1744072276068,-818.18,0.00027397,2]
[357454229,1744072276078,-151.0,0.00027397,2]
[357454230,1744072276088,-151.0,0.00027397,2]
[357454231,1744072276099,-500.0,0.00027397,2]
[357454232,1744072276109,-150.03,0.00027397,14]
[357454233,1744072276120,-300.0,0.00027397,14]
[357454234,1744072276130,-150.03,0.00027397,14]
[357454235,1744072276140,-150.03,0.00027397,14]
[357454236,1744072276150,-500.0,0.00027397,2]
[357454237,1744072276160,-150.03,0.00027397,14]
[357454238,1744072276171,-150.03,0.00027397,14]
[357454239,1744072276181,-150.03,0.00027397,14]
[357454240,1744072276191,-150.03,0.00027397,14]
[357454241,1744072276201,-150.03,0.00027397,14]
[357454242,1744072276212,-592.63,0.00027397,2]
[357454243,1744072276222,-150.03,0.00027397,14]
[357454244,1744072276232,-500.0,0.00027397,2]
[357454245,1744072276243,-766.38,0.00027397,2]
[357454246,1744072276253,-1098.07,0.00027397,2]
[357454247,1744072276263,-500.0,0.00027397,2]
[357454248,1744072276273,-500.0,0.00027397,2]
[357454249,1744072276398,-1281.59,0.00027397,2]
[357454250,1744072276412,-657.29,0.00027397,2]
[357454251,1744072276422,-504.96,0.00027397,2]
[357454252,1744072276432,-2269.19,0.00027397,2]
[357454253,1744072276442,-521.93,0.00027397,2]
[357454254,1744072276452,-1136.21,0.00027397,2]
[357454255,1744072276462,-2122.13,0.00027397,2]
[357454256,1744072276472,-2281.97,0.00027397,2]
[357454257,1744072276482,-1249.61,0.00027397,2]
[357454258,1744072276492,-2553.3,0.00027397,2]
[357454259,1744072276502,-2655.44,0.00027397,2]
[357454260,1744072276512,-4924.76,0.00027397,2]
[357454261,1744072276522,-601.7106649,0.00027397,2]
[357454262,1744072276531,-539.16,0.00027397,2]
[357454263,1744072276541,-1462.38,0.00027397,2]
[357454264,1744072276551,-992.38,0.00027397,2]
[357454265,1744072276562,-1286.42,0.00027397,2]
[357454266,1744072276577,-715.83,0.00027397,2]
[357454267,1744072276586,-1578.91,0.00027397,2]
[357454268,1744072276596,-901.29,0.00027397,2]
[357454269,1744072276606,-500.0,0.00027397,2]
[357454270,1744072276619,-150.03,0.00027397,14]
[357454271,1744072276629,-150.03,0.00027397,14]
[357454272,1744072276639,-1302.21,0.00027397,2]
[357454273,1744072276650,-150.03,0.00027397,14]
[357454274,1744072276660,-822.32,0.00027397,2]
[357454275,1744072276671,-150.03,0.00027397,14]
[357454276,1744072276681,-586.6,0.00027397,2]
[357454277,1744072276691,-150.03,0.00027397,14]
[357454278,1744072276700,-500.0,0.00027397,2]
[357454279,1744072276711,-2863.04,0.00027397,2]
[357454280,1744072276721,-1809.72,0.00027397,2]
[357454281,1744072276731,-1698.96,0.00027397,2]
[357454282,1744072276740,-264.06,0.00027397,2]
[357454283,1744072276750,-1648.87,0.00027397,2]
[357454284,1744072276760,-1498.83,0.00027397,2]
[357454285,1744072276770,-1155.35,0.00027397,2]
[357454286,1744072276780,-1146.31,0.00027397,2]
[357454287,1744072276790,-200.0,0.00027397,2]
[357454288,1744072276800,-1027.64,0.00027397,2]
[357454289,1744072276810,-1023.13,0.00027397,2]
[357454290,1744072276820,-985.96,0.00027397,2]
[357454291,1744072276831,-528.61,0.00027397,2]
[357454292,1744072276841,-1239.2,0.00027397,2]
[357454293,1744072276852,-2365.3,0.00027397,2]
[357454294,1744072276862,-1215.4,0.00027397,2]
[357454295,1744072276872,-545.75,0.00027397,2]
[357454296,1744072276882,-394.68904448,0.00027397,2]
[357454297,1744072276892,-1098.37,0.00027397,2]
[357454298,1744072276902,-753.93,0.00027397,2]
[357454299,1744072276912,-501.5,0.00027397,2]
[357454300,1744072276922,-8516.27,0.00027397,2]
[357454301,1744072276931,-500.0,0.00027397,2]
[357454302,1744072276941,-1013.38,0.00027397,2]
[357454303,1744072276951,-1848.98,0.00027397,2]
[357454304,1744072276960,-1239.8,0.00027397,2]
[357454305,1744072276969,-500.0,0.00027397,2]
[357454306,1744072276979,-343.9182,0.00027397,2]
[357454307,1744072276989,-958.54,0.00027397,2]
[357454308,1744072276999,-151.165071,0.00027397,7]
[357454309,1744072277009,-159.06929,0.00027397,120]
[357454310,1744072277018,-500.0,0.00027397,5]
[357454311,1744072277028,-375.81593026,0.00027452,5]
[357454312,1744072277038,-455.31302235,0.00027652,5]
[357454313,1744072277047,-500.0,0.00027652,5]
[357454314,1744072277057,-1000.0,0.00027652,5]
[357454315,1744072277067,-1000.0,0.00027652,5]
[357454316,1744072277077,-1000.0,0.00027652,5]
[357454317,1744072277087,-1000.0,0.00027652,5]
[357454318,1744072277098,-594.65960246,0.00027652,5]
[357454319,1744072277109,-500.0,0.00027652,5]
[357454320,1744072277118,-503.59398376,0.00027652,5]
[357454321,1744072277129,-1000.0,0.00027652,5]
[357454322,1744072277139,-1000.0,0.00027652,5]
[357454323,1744072277148,-1000.0,0.00027652,5]
[357454324,1744072277158,-501.64,0.00027671,2]
[357454325,1744072277167,-548.37,0.00027671,2]
[357454326,1744072277177,-536.65,0.00027671,2]
[357454327,1744072277186,-1119.87,0.00027671,2]
[357454328,1744072277196,-1199.5,0.00027671,2]
[357454329,1744072277205,-618.07,0.00027671,2]
[357454330,1744072277215,-1036.15,0.00027671,2]
[357454331,1744072277225,-528.55,0.00027671,2]
[357454332,1744072277235,-991.44,0.00027671,2]
[357454333,1744072277244,-627.37,0.00027671,2]
[357454334,1744072277255,-603.82,0.00027671,2]
[357454335,1744072277264,-252.3801,0.00027671,7]
[357454336,1744072277274,-252.3801,0.00027671,7]
[357454337,1744072277283,-630.12,0.00027671,2]
[357454338,1744072277293,-151.0,0.00027671,7]
[357454339,1744072277303,-1246.42,0.00027671,2]
[357454340,1744072277313,-764.69,0.00027671,2]
[357454341,1744072277323,-1246.58,0.00027671,2]
[357454342,1744072277333,-818.18,0.00027671,2]
[357454343,1744072277343,-500.0,0.00027671,2]
[357454344,1744072277352,-500.0,0.00027671,2]
[357454345,1744072277362,-592.63,0.00027671,2]
[357454346,1744072277372,-396.1,0.00027671,2]
[357454347,1744072277384,-766.38,0.00027671,2]
[357454348,1744072277393,-1098.07,0.00027671,2]
[357454349,1744072277403,-500.0,0.00027671,2]
[357454350,1744072277413,-500.0,0.00027671,2]
[357454351,1744072277424,-1281.59,0.00027671,2]
[357454352,1744072277434,-657.29,0.00027671,2]
[357454353,1744072277444,-504.96,0.00027671,2]
[357454354,1744072277454,-2269.19,0.00027671,2]
[357454355,1744072277464,-521.93,0.00027671,2]
[357454356,1744072277474,-1136.21,0.00027671,2]
[357454357,1744072277484,-2122.13,0.00027671,2]
[357454358,1744072277494,-2281.97,0.00027671,2]
[357454359,1744072277507,-1249.61,0.00027671,2]
[357454360,1744072277517,-2553.3,0.00027671,2]
[357454361,1744072277527,-2655.44,0.00027671,2]
[357454362,1744072277537,-4924.76,0.00027671,2]
[357454363,1744072277547,-539.16,0.00027671,2]
[357454364,1744072277557,-1462.38,0.00027671,2]
[357454365,1744072277569,-992.38,0.00027671,2]
[357454366,1744072277579,-1286.42,0.00027671,2]
[357454367,1744072277589,-715.83,0.00027671,2]
[357454368,1744072277599,-1578.91,0.00027671,2]
[357454369,1744072277610,-901.29,0.00027671,2]
[357454370,1744072277619,-500.0,0.00027671,2]
[357454371,1744072277630,-1302.21,0.00027671,2]
[357454372,1744072277640,-822.32,0.00027671,2]
[357454373,1744072277650,-586.6,0.00027671,2]
[357454374,1744072277661,-185.64,0.00027671,2]
[357454375,1744072277671,-2863.04,0.00027671,2]
[357454376,1744072277681,-1809.72,0.00027671,2]
[357454377,1744072277690,-1698.96,0.00027671,2]
[357454378,1744072277700,-1648.87,0.00027671,2]
[357454379,1744072277709,-1498.83,0.00027671,2]
[357454380,1744072277719,-1155.35,0.00027671,2]
[357454381,1744072277729,-1146.31,0.00027671,2]
[357454382,1744072277739,-1027.64,0.00027671,2]
[357454383,1744072277749,-1023.13,0.00027671,2]
[357454384,1744072277759,-985.96,0.00027671,2]
[357454385,1744072277770,-528.61,0.00027671,2]
[357454386,1744072277780,-1239.2,0.00027671,2]
[357454387,1744072277790,-2365.3,0.00027671,2]
[357454388,1744072277801,-1215.4,0.00027671,2]
[357454389,1744072277811,-545.75,0.00027671,2]
[357454390,1744072277821,-1098.37,0.00027671,2]
[357454391,1744072277831,-753.93,0.00027671,2]
[357454392,1744072277841,-501.5,0.00027671,2]
[357454393,1744072277851,-8516.27,0.00027671,2]
[357454394,1744072277860,-500.0,0.00027671,2]
[357454395,1744072277870,-1013.38,0.00027671,2]
[357454396,1744072277880,-1848.98,0.00027671,2]
[357454397,1744072277890,-1239.8,0.00027671,2]
[357454398,1744072277899,-500.0,0.00027671,2]
[357454399,1744072277909,-958.54,0.00027671,2]
[357454400,1744072277919,-150.03,0.00027945,14]
[357454401,1744072277929,-150.03,0.00027945,14]
[357454402,1744072277938,-299.97,0.00027945,14]
[357454403,1744072277948,-150.03,0.00027945,14]
[357454404,1744072277958,-299.97,0.00027945,14]
[357454405,1744072277968,-731.79210306,0.00027945,14]
[357454406,1744072277977,-299.97,0.00027945,14]
[357454407,1744072277987,-150.03,0.00027945,14]
[357454408,1744072277997,-150.03,0.00027945,14]
[357454409,1744072278006,-150.03,0.00027945,14]
[357454410,1744072278017,-299.97,0.00027945,14]
[357454411,1744072278026,-150.03,0.00027945,14]
[357454412,1744072278035,-150.03,0.00027945,14]
[357454413,1744072278045,-150.03,0.00027945,14]
[357454414,1744072278055,-299.97,0.00027945,14]
[357454415,1744072278064,-150.03,0.00027945,14]
[357454416,1744072278074,-150.03,0.00027945,14]
[357454417,1744072278084,-150.03,0.00027945,14]
[357454418,1744072278094,-150.03,0.00027945,14]
[357454419,1744072278104,-150.03,0.00027945,14]
[357454420,1744072278114,-150.03,0.00027945,14]
[357454421,1744072278125,-150.03,0.00027945,14]
[357454422,1744072278135,-501.64,0.00027945,2]
[357454423,1744072278145,-548.37,0.00027945,2]
[357454424,1744072278155,-536.65,0.00027945,2]
[357454425,1744072278165,-1119.87,0.00027945,2]
[357454426,1744072278175,-1199.5,0.00027945,2]
[357454427,1744072278185,-618.07,0.00027945,2]
[357454428,1744072278195,-1036.15,0.00027945,2]
[357454429,1744072278205,-528.55,0.00027945,2]
[357454430,1744072278215,-991.44,0.00027945,2]
[357454431,1744072278226,-627.37,0.00027945,2]
[357454432,1744072278235,-630.12,0.00027945,2]
[357454433,1744072278245,-1246.42,0.00027945,2]
[357454434,1744072278255,-764.69,0.00027945,2]
[357454435,1744072278265,-1246.58,0.00027945,2]
[357454436,1744072278275,-818.18,0.00027945,2]
[357454437,1744072278285,-529.79447422,0.00027945,2]
[357454438,1744072278294,-500.0,0.00027945,2]
[357454439,1744072278305,-592.63,0.00027945,2]
[357454440,1744072278315,-766.38,0.00027945,2]
[357454441,1744072278325,-1098.07,0.00027945,2]
[357454442,1744072278335,-383.35,0.00027945,2]
[357454443,1744072278345,-500.0,0.00027945,2]
[357454444,1744072278355,-1281.59,0.00027945,2]
[357454445,1744072278365,-657.29,0.00027945,2]
[357454446,1744072278376,-504.96,0.00027945,2]
[357454447,1744072278386,-2269.19,0.00027945,2]
[357454448,1744072278396,-521.93,0.00027945,2]
[357454449,1744072278548,-1136.21,0.00027945,2]
[357454450,1744072278558,-2122.13,0.00027945,2]
[357454451,1744072278572,-2281.97,0.00027945,2]
[357454452,1744072278582,-1249.61,0.00027945,2]
[357454453,1744072278592,-2553.3,0.00027945,2]
[357454454,1744072278602,-2655.44,0.00027945,2]
[357454455,1744072278614,-4924.76,0.00027945,2]
[357454456,1744072278623,-539.16,0.00027945,2]
[357454457,1744072278634,-1462.38,0.00027945,2]
[357454458,1744072278646,-992.38,0.00027945,2]
[357454459,1744072278657,-1286.42,0.00027945,2]
[357454460,1744072278667,-715.83,0.00027945,2]
[357454461,1744072278677,-1578.91,0.00027945,2]
[357454462,1744072278686,-901.29,0.00027945,2]